[Event "Titled Tuesday Blitz June 14 Late 2022"]
[White "Tica, Sven"]
[Black "Girsh, Daniel"]
[WhiteFideId "14526948"]
[BlackFideId "30949190"]
[WhiteElo "2346"]
[BlackElo "2506"]
[Result "1/2-1/2"]
[Round "06"]
[TimeControl "180+1"]
[Date "2022.06.15"]
[WhiteClock "0:00:09"]
[BlackClock "0:00:03"]

1. d4 {[%clk 0:02:55]}  Nf6 {[%clk 0:02:59]} 2. Nc3 {[%clk 0:02:51]}  d5 {[%clk 0:02:58]} 3. Bf4 {[%clk 0:02:51]}  e6 {[%clk 0:02:58]} 4. e3 {[%clk 0:02:49]}  Bb4 {[%clk 0:02:57]} 5. Ne2 {[%clk 0:02:36]}  O-O {[%clk 0:02:54]} 6. a3 {[%clk 0:02:36]}  Bd6 {[%clk 0:02:52]} 7. f3 {[%clk 0:02:34]}  b6 {[%clk 0:02:52]} 8. Bxd6 {[%clk 0:02:33]}  Qxd6 {[%clk 0:02:50]} 9. Nf4 {[%clk 0:02:34]}  c5 {[%clk 0:02:47]} 10. dxc5 {[%clk 0:02:31]}  bxc5 {[%clk 0:02:47]} 11. Be2 {[%clk 0:02:31]}  Ba6 {[%clk 0:02:47]} 12. O-O {[%clk 0:02:31]}  Bxe2 {[%clk 0:02:41]} 13. Qxe2 {[%clk 0:02:32]}  e5 {[%clk 0:02:39]} 14. Nfxd5 {[%clk 0:02:19]}  Nxd5 {[%clk 0:02:38]} 15. Qd2 {[%clk 0:02:04]}  Rd8 {[%clk 0:02:27]} 16. Rad1 {[%clk 0:02:05]}  Nc6 {[%clk 0:01:24]} 17. Nxd5 {[%clk 0:01:47]}  Nd4 {[%clk 0:01:17]} 18. c4 {[%clk 0:01:42]}  Nc6 {[%clk 0:01:06]} 19. Qc2 {[%clk 0:01:42]}  Qh6 {[%clk 0:01:01]} 20. Rfe1 {[%clk 0:01:35]}  Rab8 {[%clk 0:00:54]} 21. Re2 {[%clk 0:01:27]}  Rb7 {[%clk 0:00:53]} 22. Qe4 {[%clk 0:01:23]}  Rbd7 {[%clk 0:00:49]} 23. Red2 {[%clk 0:01:23]}  Qe6 {[%clk 0:00:46]} 24. h3 {[%clk 0:00:59]}  f5 {[%clk 0:00:45]} 25. Qh4 {[%clk 0:00:59]}  h6 {[%clk 0:00:42]} 26. Qh5 {[%clk 0:00:58]}  Kh7 {[%clk 0:00:41]} 27. Kh2 {[%clk 0:00:58]}  g6 {[%clk 0:00:36]} 28. Nf6+ {[%clk 0:00:53]}  Qxf6 {[%clk 0:00:21]} 29. Rxd7+ {[%clk 0:00:53]}  Rxd7 {[%clk 0:00:20]} 30. Rxd7+ {[%clk 0:00:54]}  Ne7 {[%clk 0:00:21]} 31. Rd6 {[%clk 0:00:44]}  Qxd6 {[%clk 0:00:19]} 32. Qh4 {[%clk 0:00:44]}  g5 {[%clk 0:00:18]} 33. Qe1 {[%clk 0:00:44]}  e4+ {[%clk 0:00:18]} 34. Kg1 {[%clk 0:00:43]}  Qd3 {[%clk 0:00:16]} 35. Qa5 {[%clk 0:00:38]}  Qxe3+ {[%clk 0:00:14]} 36. Kh2 {[%clk 0:00:38]}  Qf4+ {[%clk 0:00:14]} 37. Kg1 {[%clk 0:00:38]}  Ng6 {[%clk 0:00:13]} 38. Qxa7+ {[%clk 0:00:39]}  Kg8 {[%clk 0:00:12]} 39. Qa8+ {[%clk 0:00:39]}  Nf8 {[%clk 0:00:13]} 40. Qd5+ {[%clk 0:00:39]}  Kg7 {[%clk 0:00:13]} 41. fxe4 {[%clk 0:00:34]}  Qc1+ {[%clk 0:00:11]} 42. Kh2 {[%clk 0:00:33]}  Qf4+ {[%clk 0:00:12]} 43. Kg1 {[%clk 0:00:34]}  Qxe4 {[%clk 0:00:12]} 44. Qxc5 {[%clk 0:00:34]}  Qe1+ {[%clk 0:00:12]} 45. Kh2 {[%clk 0:00:34]}  f4 {[%clk 0:00:11]} 46. Qc7+ {[%clk 0:00:31]}  Kg6 {[%clk 0:00:10]} 47. Qd6+ {[%clk 0:00:32]}  Ne6 {[%clk 0:00:09]} 48. Qd3+ {[%clk 0:00:31]}  Kf6 {[%clk 0:00:08]} 49. b4 {[%clk 0:00:31]}  Qe3 {[%clk 0:00:07]} 50. Qh7 {[%clk 0:00:24]}  Qf2 {[%clk 0:00:05]} 51. Qxh6+ {[%clk 0:00:24]}  Ke5 {[%clk 0:00:05]} 52. Qh8+ {[%clk 0:00:24]}  Ke4 {[%clk 0:00:05]} 53. Qh7+ {[%clk 0:00:24]}  Ke3 {[%clk 0:00:03]} 54. Qb1 {[%clk 0:00:21]}  Qg3+ {[%clk 0:00:03]} 55. Kh1 {[%clk 0:00:21]}  Nd4 {[%clk 0:00:04]} 56. Qc1+ {[%clk 0:00:18]}  Ke4 {[%clk 0:00:03]} 57. c5 {[%clk 0:00:16]}  f3 {[%clk 0:00:03]} 58. Qf1 {[%clk 0:00:14]}  f2 {[%clk 0:00:01]} 59. c6 {[%clk 0:00:10]}  Qe3 {[%clk 0:00:02]} 60. g4 {[%clk 0:00:07]}  Qe1 {[%clk 0:00:03]} 61. Kg2 {[%clk 0:00:08]}  Ne2 {[%clk 0:00:02]} 62. Qxf2 {[%clk 0:00:08]}  Nf4+ {[%clk 0:00:03]} 63. Kg3 {[%clk 0:00:08]}  Ne2+ {[%clk 0:00:02]} 64. Kg2 {[%clk 0:00:09]}  Nf4+ {[%clk 0:00:03]} 65. Kg3 {[%clk 0:00:09]}  Ne2+ {[%clk 0:00:03]} 66. Kg2 {[%clk 0:00:09]} 1/2-1/2


[Site "https://www.chess.com"]

[Event "Titled Tuesday Blitz June 14 Late 2022"]
[White "Trakru, Rohun"]
[Black "Bryakin, Mikhail"]
[WhiteFideId "2097613"]
[BlackFideId "4165314"]
[WhiteElo "1746"]
[BlackElo "2417"]
[Result "0-1"]
[Round "06"]
[TimeControl "180+1"]
[Date "2022.06.14"]
[WhiteClock "0:00:02"]
[BlackClock "0:00:19"]

1. e4 {[%clk 0:03:00]}  c5 {[%clk 0:02:56]} 2. Nc3 {[%clk 0:03:00]}  Nc6 {[%clk 0:02:42]} 3. Bb5 {[%clk 0:02:59]}  Nd4 {[%clk 0:02:39]} 4. Nf3 {[%clk 0:02:59]}  Nxb5 {[%clk 0:02:39]} 5. Nxb5 {[%clk 0:03:00]}  d6 {[%clk 0:02:37]} 6. d4 {[%clk 0:02:58]}  cxd4 {[%clk 0:02:37]} 7. Qxd4 {[%clk 0:02:58]}  a6 {[%clk 0:02:34]} 8. Nc3 {[%clk 0:02:56]}  Nf6 {[%clk 0:02:34]} 9. Bg5 {[%clk 0:02:51]}  h6 {[%clk 0:02:34]} 10. Bxf6 {[%clk 0:02:50]}  gxf6 {[%clk 0:02:35]} 11. O-O-O {[%clk 0:02:47]}  e6 {[%clk 0:02:24]} 12. Na4 {[%clk 0:02:27]}  b5 {[%clk 0:02:19]} 13. Nb6 {[%clk 0:02:15]}  Rb8 {[%clk 0:02:18]} 14. Nxc8 {[%clk 0:02:15]}  Rxc8 {[%clk 0:02:13]} 15. Kb1 {[%clk 0:02:15]}  Be7 {[%clk 0:02:11]} 16. g3 {[%clk 0:02:13]}  Qc7 {[%clk 0:02:11]} 17. c3 {[%clk 0:02:11]}  Qc5 {[%clk 0:02:11]} 18. h4 {[%clk 0:02:09]}  h5 {[%clk 0:02:11]} 19. Ne1 {[%clk 0:02:03]}  Qxd4 {[%clk 0:02:10]} 20. cxd4 {[%clk 0:01:59]}  Kd7 {[%clk 0:02:08]} 21. Nd3 {[%clk 0:01:59]}  Rc4 {[%clk 0:02:06]} 22. Nf4 {[%clk 0:01:57]}  Bf8 {[%clk 0:02:02]} 23. b3 {[%clk 0:01:51]}  Rc3 {[%clk 0:02:00]} 24. Rd3 {[%clk 0:01:45]}  Rc8 {[%clk 0:01:55]} 25. d5 {[%clk 0:01:32]}  e5 {[%clk 0:01:40]} 26. Ne2 {[%clk 0:01:32]}  Bh6 {[%clk 0:01:34]} 27. Kb2 {[%clk 0:01:22]}  Ke7 {[%clk 0:01:35]} 28. Rhd1 {[%clk 0:01:13]}  f5 {[%clk 0:01:34]} 29. exf5 {[%clk 0:01:06]}  Kf6 {[%clk 0:01:34]} 30. Nc3 {[%clk 0:00:59]}  Kxf5 {[%clk 0:01:18]} 31. Rf3+ {[%clk 0:00:58]}  Kg6 {[%clk 0:01:19]} 32. Ne4 {[%clk 0:00:59]}  Bg7 {[%clk 0:01:14]} 33. Kb1 {[%clk 0:00:44]}  Rhd8 {[%clk 0:01:04]} 34. Ng5 {[%clk 0:00:29]}  f5 {[%clk 0:00:59]} 35. Ne6 {[%clk 0:00:28]}  Rg8 {[%clk 0:00:44]} 36. Rfd3 {[%clk 0:00:24]}  Bh6 {[%clk 0:00:44]} 37. Kb2 {[%clk 0:00:22]}  Kf6 {[%clk 0:00:44]} 38. Rc3 {[%clk 0:00:21]}  b4 {[%clk 0:00:41]} 39. Rc4 {[%clk 0:00:19]}  a5 {[%clk 0:00:39]} 40. a3 {[%clk 0:00:18]}  bxa3+ {[%clk 0:00:36]} 41. Kxa3 {[%clk 0:00:19]}  Rxc4 {[%clk 0:00:36]} 42. bxc4 {[%clk 0:00:20]}  Rc8 {[%clk 0:00:36]} 43. Kb3 {[%clk 0:00:20]}  a4+ {[%clk 0:00:37]} 44. Kb4 {[%clk 0:00:17]}  a3 {[%clk 0:00:37]} 45. c5 {[%clk 0:00:15]}  a2 {[%clk 0:00:34]} 46. Ra1 {[%clk 0:00:06]}  dxc5+ {[%clk 0:00:31]} 47. Kc4 {[%clk 0:00:07]}  Ra8 {[%clk 0:00:27]} 48. Nxc5 {[%clk 0:00:07]}  e4 {[%clk 0:00:22]} 49. Nb3 {[%clk 0:00:06]}  Ke5 {[%clk 0:00:21]} 50. Rd1 {[%clk 0:00:05]}  Kd6 {[%clk 0:00:20]} 51. Na1 {[%clk 0:00:01]}  Bg7 {[%clk 0:00:18]} 52. Nc2 {[%clk 0:00:02]}  a1=Q {[%clk 0:00:18]} 53. Nxa1 {[%clk 0:00:02]}  Rxa1 {[%clk 0:00:19]} 0-1


[Site "https://www.chess.com"]

[Event "Titled Tuesday Blitz June 14 Late 2022"]
[White "Voege, Tobias"]
[Black "Rosen, Eric"]
[WhiteFideId "1270513"]
[BlackFideId "2032562"]
[WhiteElo "2379"]
[BlackElo "2362"]
[Result "1/2-1/2"]
[Round "06"]
[TimeControl "180+1"]
[Date "2022.06.14"]
[WhiteClock "0:00:27"]
[BlackClock "0:00:09"]

1. d4 {[%clk 0:03:00]}  d5 {[%clk 0:00:15]} 2. c4 {[%clk 0:02:59]}  e6 {[%clk 0:00:15]} 3. Nc3 {[%clk 0:02:59]}  Nf6 {[%clk 0:00:16]} 4. Bg5 {[%clk 0:03:00]}  Be7 {[%clk 0:00:15]} 5. e3 {[%clk 0:03:00]}  O-O {[%clk 0:00:15]} 6. cxd5 {[%clk 0:03:01]}  exd5 {[%clk 0:00:15]} 7. Bd3 {[%clk 0:03:00]}  c6 {[%clk 0:00:15]} 8. Nge2 {[%clk 0:03:01]}  Re8 {[%clk 0:00:15]} 9. Qc2 {[%clk 0:03:01]}  Nbd7 {[%clk 0:00:16]} 10. O-O {[%clk 0:03:02]}  Nf8 {[%clk 0:00:16]} 11. Rab1 {[%clk 0:03:02]}  Ng6 {[%clk 0:00:17]} 12. b4 {[%clk 0:03:01]}  a6 {[%clk 0:00:17]} 13. Na4 {[%clk 0:03:01]}  Bd6 {[%clk 0:00:17]} 14. Ng3 {[%clk 0:02:57]}  h6 {[%clk 0:00:18]} 15. Bxg6 {[%clk 0:02:54]}  hxg5 {[%clk 0:00:18]} 16. Bd3 {[%clk 0:02:54]}  Be6 {[%clk 0:00:15]} 17. Nc5 {[%clk 0:02:53]}  Qe7 {[%clk 0:00:11]} 18. Nf5 {[%clk 0:02:47]}  Bxf5 {[%clk 0:00:11]} 19. Bxf5 {[%clk 0:02:47]}  g6 {[%clk 0:00:12]} 20. Bxg6 {[%clk 0:02:33]}  fxg6 {[%clk 0:00:11]} 21. Qxg6+ {[%clk 0:02:34]}  Qg7 {[%clk 0:00:12]} 22. Qxg7+ {[%clk 0:02:35]}  Kxg7 {[%clk 0:00:13]} 23. Nxb7 {[%clk 0:02:35]}  Ne4 {[%clk 0:00:08]} 24. f3 {[%clk 0:02:30]}  Rab8 {[%clk 0:00:09]} 25. fxe4 {[%clk 0:02:17]}  Rxb7 {[%clk 0:00:09]} 26. e5 {[%clk 0:02:17]}  Bxb4 {[%clk 0:00:09]} 27. a3 {[%clk 0:02:17]}  a5 {[%clk 0:00:06]} 28. axb4 {[%clk 0:02:17]}  axb4 {[%clk 0:00:05]} 29. Rfc1 {[%clk 0:02:14]}  Rb6 {[%clk 0:00:05]} 30. Kf2 {[%clk 0:02:13]}  Ra8 {[%clk 0:00:06]} 31. Rb2 {[%clk 0:02:12]}  Kg6 {[%clk 0:00:06]} 32. Rcb1 {[%clk 0:02:07]}  Rab8 {[%clk 0:00:04]} 33. Kf3 {[%clk 0:02:05]}  Kf5 {[%clk 0:00:04]} 34. g4+ {[%clk 0:02:01]}  Ke6 {[%clk 0:00:04]} 35. e4 {[%clk 0:01:58]}  R6b7 {[%clk 0:00:04]} 36. Rc1 {[%clk 0:01:54]}  Rb6 {[%clk 0:00:04]} 37. Rbc2 {[%clk 0:01:45]}  b3 {[%clk 0:00:03]} 38. Rxc6+ {[%clk 0:01:40]}  Rxc6 {[%clk 0:00:03]} 39. Rxc6+ {[%clk 0:01:41]}  Kd7 {[%clk 0:00:04]} 40. Rc1 {[%clk 0:01:29]}  b2 {[%clk 0:00:05]} 41. Rb1 {[%clk 0:01:29]}  Rb3+ {[%clk 0:00:05]} 42. Ke2 {[%clk 0:01:26]}  dxe4 {[%clk 0:00:06]} 43. d5 {[%clk 0:01:17]}  Rh3 {[%clk 0:00:06]} 44. Kf2 {[%clk 0:01:14]}  Rd3 {[%clk 0:00:06]} 45. Rxb2 {[%clk 0:01:08]}  Rxd5 {[%clk 0:00:06]} 46. Ke3 {[%clk 0:01:03]}  Rxe5 {[%clk 0:00:06]} 47. Kd4 {[%clk 0:01:01]}  Re6 {[%clk 0:00:03]} 48. Re2 {[%clk 0:00:56]}  Rf6 {[%clk 0:00:03]} 49. h3 {[%clk 0:00:42]}  Ke6 {[%clk 0:00:03]} 50. Rxe4+ {[%clk 0:00:37]}  Kf7 {[%clk 0:00:03]} 51. Ke3 {[%clk 0:00:36]}  Kg6 {[%clk 0:00:03]} 52. Ra4 {[%clk 0:00:35]}  Rf1 {[%clk 0:00:03]} 53. Ra6+ {[%clk 0:00:35]}  Kg7 {[%clk 0:00:03]} 54. Ke4 {[%clk 0:00:33]}  Rf4+ {[%clk 0:00:03]} 55. Ke5 {[%clk 0:00:33]}  Rf3 {[%clk 0:00:03]} 56. Ra7+ {[%clk 0:00:31]}  Kg6 {[%clk 0:00:04]} 57. Ra6+ {[%clk 0:00:32]}  Kg7 {[%clk 0:00:04]} 58. Rb6 {[%clk 0:00:27]}  Rxh3 {[%clk 0:00:04]} 59. Kf5 {[%clk 0:00:26]}  Rc3 {[%clk 0:00:04]} 60. Kxg5 {[%clk 0:00:24]}  Rc5+ {[%clk 0:00:04]} 61. Kh4 {[%clk 0:00:24]}  Ra5 {[%clk 0:00:04]} 62. g5 {[%clk 0:00:24]}  Ra1 {[%clk 0:00:03]} 63. Rb7+ {[%clk 0:00:24]}  Kg6 {[%clk 0:00:03]} 64. Rb6+ {[%clk 0:00:24]}  Kg7 {[%clk 0:00:04]} 65. Rb7+ {[%clk 0:00:25]}  Kg6 {[%clk 0:00:04]} 66. Rb6+ {[%clk 0:00:25]}  Kh7 {[%clk 0:00:04]} 67. Rb4 {[%clk 0:00:21]}  Rh1+ {[%clk 0:00:03]} 68. Kg4 {[%clk 0:00:22]}  Kg6 {[%clk 0:00:03]} 69. Rb6+ {[%clk 0:00:21]}  Kg7 {[%clk 0:00:04]} 70. Rb3 {[%clk 0:00:21]}  Rg1+ {[%clk 0:00:03]} 71. Kf4 {[%clk 0:00:20]}  Rf1+ {[%clk 0:00:03]} 72. Rf3 {[%clk 0:00:21]}  Rg1 {[%clk 0:00:02]} 73. Kf5 {[%clk 0:00:20]}  Rb1 {[%clk 0:00:02]} 74. Re3 {[%clk 0:00:20]}  Rb5+ {[%clk 0:00:02]} 75. Re5 {[%clk 0:00:20]}  Rxe5+ {[%clk 0:00:03]} 76. Kxe5 {[%clk 0:00:21]}  Kg6 {[%clk 0:00:03]} 77. Kf4 {[%clk 0:00:21]}  Kg7 {[%clk 0:00:04]} 78. Kf5 {[%clk 0:00:22]}  Kf7 {[%clk 0:00:05]} 79. g6+ {[%clk 0:00:23]}  Kg7 {[%clk 0:00:06]} 80. Kg5 {[%clk 0:00:24]}  Kg8 {[%clk 0:00:06]} 81. Kh5 {[%clk 0:00:25]}  Kg7 {[%clk 0:00:07]} 82. Kg5 {[%clk 0:00:25]}  Kg8 {[%clk 0:00:07]} 83. Kf6 {[%clk 0:00:26]}  Kf8 {[%clk 0:00:07]} 84. Ke6 {[%clk 0:00:25]}  Kg7 {[%clk 0:00:07]} 85. Kf5 {[%clk 0:00:26]}  Kg8 {[%clk 0:00:07]} 86. Kf6 {[%clk 0:00:27]}  Kf8 {[%clk 0:00:07]} 87. g7+ {[%clk 0:00:27]}  Kg8 {[%clk 0:00:08]} 88. Kg5 {[%clk 0:00:27]}  Kxg7 {[%clk 0:00:09]} 1/2-1/2


[Site "https://www.chess.com"]

[Event "Titled Tuesday Blitz June 14 Late 2022"]
[White "Xiong, Jeffery"]
[Black "Kollars, Dmitrij"]
[WhiteFideId "2047640"]
[BlackFideId "12909572"]
[WhiteElo "2714"]
[BlackElo "2584"]
[Result "1-0"]
[Round "06"]
[TimeControl "180+1"]
[Date "2022.06.14"]
[WhiteClock "0:00:06"]
[BlackClock "0:00:03"]

1. d4 {[%clk 0:03:00]}  Nf6 {[%clk 0:02:57]} 2. Nf3 {[%clk 0:03:01]}  d5 {[%clk 0:02:57]} 3. Bf4 {[%clk 0:03:02]}  c5 {[%clk 0:02:56]} 4. e3 {[%clk 0:03:02]}  Nc6 {[%clk 0:02:56]} 5. Nbd2 {[%clk 0:03:01]}  Bg4 {[%clk 0:02:55]} 6. c3 {[%clk 0:02:59]}  e6 {[%clk 0:02:55]} 7. Qb3 {[%clk 0:02:59]}  Qc8 {[%clk 0:02:54]} 8. h3 {[%clk 0:02:59]}  Bh5 {[%clk 0:02:52]} 9. Nh4 {[%clk 0:03:00]}  Be7 {[%clk 0:02:46]} 10. g4 {[%clk 0:03:00]}  Bg6 {[%clk 0:02:45]} 11. Nxg6 {[%clk 0:03:01]}  hxg6 {[%clk 0:02:46]} 12. Be2 {[%clk 0:03:01]}  cxd4 {[%clk 0:02:34]} 13. exd4 {[%clk 0:03:02]}  Qd7 {[%clk 0:02:34]} 14. Kf1 {[%clk 0:03:00]}  Bd6 {[%clk 0:02:33]} 15. Be3 {[%clk 0:02:53]}  Rc8 {[%clk 0:02:17]} 16. Kg2 {[%clk 0:02:52]}  a6 {[%clk 0:02:17]} 17. a4 {[%clk 0:02:49]}  Na5 {[%clk 0:02:15]} 18. Qc2 {[%clk 0:02:49]}  Qc6 {[%clk 0:02:01]} 19. h4 {[%clk 0:02:02]}  Nc4 {[%clk 0:01:50]} 20. Nxc4 {[%clk 0:02:02]}  dxc4+ {[%clk 0:01:51]} 21. Bf3 {[%clk 0:02:03]}  Nd5 {[%clk 0:01:51]} 22. Rae1 {[%clk 0:02:00]}  Kd7 {[%clk 0:01:48]} 23. Bd2 {[%clk 0:01:53]}  Kc7 {[%clk 0:01:42]} 24. h5 {[%clk 0:01:48]}  gxh5 {[%clk 0:01:41]} 25. Rxh5 {[%clk 0:01:49]}  g6 {[%clk 0:01:32]} 26. Rhh1 {[%clk 0:01:36]}  Kb8 {[%clk 0:01:29]} 27. Qd1 {[%clk 0:01:35]}  Bf4 {[%clk 0:01:17]} 28. Qc1 {[%clk 0:01:24]}  Qd6 {[%clk 0:01:09]} 29. Bxd5 {[%clk 0:01:21]}  Qxd5+ {[%clk 0:01:09]} 30. f3 {[%clk 0:01:21]}  Bc7 {[%clk 0:00:59]} 31. Bf4 {[%clk 0:01:20]}  Qc6 {[%clk 0:00:27]} 32. Bxc7+ {[%clk 0:01:14]}  Qxc7 {[%clk 0:00:28]} 33. Qg5 {[%clk 0:01:14]}  Ka8 {[%clk 0:00:25]} 34. a5 {[%clk 0:01:14]}  Qd7 {[%clk 0:00:20]} 35. Qe5 {[%clk 0:01:10]}  Rxh1 {[%clk 0:00:17]} 36. Rxh1 {[%clk 0:01:11]}  Qa4 {[%clk 0:00:17]} 37. Rh7 {[%clk 0:01:02]}  Qc2+ {[%clk 0:00:14]} 38. Kg3 {[%clk 0:01:03]}  Qxb2 {[%clk 0:00:14]} 39. Rxf7 {[%clk 0:01:03]}  Qxc3 {[%clk 0:00:14]} 40. Qxe6 {[%clk 0:01:04]}  Rb8 {[%clk 0:00:14]} 41. Qd5 {[%clk 0:01:03]}  Qe1+ {[%clk 0:00:12]} 42. Kf4 {[%clk 0:00:59]}  Qd2+ {[%clk 0:00:12]} 43. Kg3 {[%clk 0:00:58]}  Qe1+ {[%clk 0:00:12]} 44. Kf4 {[%clk 0:00:58]}  Qd2+ {[%clk 0:00:13]} 45. Kg3 {[%clk 0:00:43]}  c3 {[%clk 0:00:12]} 46. Rf6 {[%clk 0:00:43]}  Qe1+ {[%clk 0:00:12]} 47. Kf4 {[%clk 0:00:43]}  Qd2+ {[%clk 0:00:12]} 48. Kg3 {[%clk 0:00:44]}  Qe1+ {[%clk 0:00:12]} 49. Kf4 {[%clk 0:00:39]}  Qe2 {[%clk 0:00:09]} 50. Re6 {[%clk 0:00:27]}  Qd3 {[%clk 0:00:09]} 51. Qc5 {[%clk 0:00:16]}  c2 {[%clk 0:00:07]} 52. Kg3 {[%clk 0:00:17]}  Qf1 {[%clk 0:00:06]} 53. Qxc2 {[%clk 0:00:16]}  Qg1+ {[%clk 0:00:06]} 54. Qg2 {[%clk 0:00:15]}  Qxd4 {[%clk 0:00:07]} 55. Qf2 {[%clk 0:00:13]}  Qd5 {[%clk 0:00:06]} 56. Qb6 {[%clk 0:00:13]}  Qc4 {[%clk 0:00:05]} 57. Rxg6 {[%clk 0:00:11]}  Qf1 {[%clk 0:00:05]} 58. Rg7 {[%clk 0:00:06]}  Qe1+ {[%clk 0:00:05]} 59. Kg2 {[%clk 0:00:07]}  Qd2+ {[%clk 0:00:04]} 60. Kg3 {[%clk 0:00:06]}  Qe1+ {[%clk 0:00:04]} 61. Kg2 {[%clk 0:00:07]}  Qd2+ {[%clk 0:00:05]} 62. Qf2 {[%clk 0:00:05]}  Qxa5 {[%clk 0:00:04]} 63. Qb2 {[%clk 0:00:04]}  Qd5 {[%clk 0:00:03]} 64. Re7 {[%clk 0:00:03]}  Qd6 {[%clk 0:00:03]} 65. Re5 {[%clk 0:00:02]}  Rd8 {[%clk 0:00:02]} 66. Qe2 {[%clk 0:00:03]}  Qb4 {[%clk 0:00:02]} 67. Re8 {[%clk 0:00:03]}  Rxe8 {[%clk 0:00:02]} 68. Qxe8+ {[%clk 0:00:04]}  Ka7 {[%clk 0:00:03]} 69. Qe3+ {[%clk 0:00:05]}  Ka8 {[%clk 0:00:03]} 70. g5 {[%clk 0:00:05]}  Qb2+ {[%clk 0:00:02]} 71. Kg3 {[%clk 0:00:05]}  Qg7 {[%clk 0:00:03]} 72. f4 {[%clk 0:00:05]}  a5 {[%clk 0:00:03]} 73. Qe5 {[%clk 0:00:06]} 1-0


[Site "https://www.chess.com"]

[Event "Titled Tuesday Blitz June 14 Late 2022"]
[White "Yaksin, Oleg"]
[Black "Yoo, Christopher Woojin"]
[WhiteFideId "24105880"]
[BlackFideId "30909694"]
[WhiteElo "2256"]
[BlackElo "2105"]
[Result "0-1"]
[Round "06"]
[TimeControl "180+1"]
[Date "2022.06.14"]
[WhiteClock "0:00:29"]
[BlackClock "0:01:08"]

1. d4 {[%clk 0:02:57]}  Nf6 {[%clk 0:02:49]} 2. c4 {[%clk 0:02:57]}  e6 {[%clk 0:02:48]} 3. g3 {[%clk 0:02:58]}  d5 {[%clk 0:02:48]} 4. Nf3 {[%clk 0:02:58]}  Be7 {[%clk 0:02:47]} 5. Bg2 {[%clk 0:02:58]}  O-O {[%clk 0:02:48]} 6. O-O {[%clk 0:02:58]}  dxc4 {[%clk 0:02:48]} 7. Qc2 {[%clk 0:02:58]}  b5 {[%clk 0:02:48]} 8. Ne5 {[%clk 0:02:57]}  Nd5 {[%clk 0:02:44]} 9. a4 {[%clk 0:02:56]}  b4 {[%clk 0:02:45]} 10. Nxc4 {[%clk 0:02:49]}  c5 {[%clk 0:02:44]} 11. e4 {[%clk 0:02:30]}  Nb6 {[%clk 0:02:44]} 12. d5 {[%clk 0:02:26]}  Nxc4 {[%clk 0:02:43]} 13. Qxc4 {[%clk 0:02:25]}  Ba6 {[%clk 0:02:43]} 14. Qc2 {[%clk 0:02:24]}  Bxf1 {[%clk 0:02:44]} 15. Kxf1 {[%clk 0:02:25]}  exd5 {[%clk 0:02:44]} 16. exd5 {[%clk 0:02:25]}  Nd7 {[%clk 0:02:43]} 17. a5 {[%clk 0:02:23]}  Nf6 {[%clk 0:02:41]} 18. Qc4 {[%clk 0:02:22]}  Bd6 {[%clk 0:02:32]} 19. Be3 {[%clk 0:02:19]}  Rc8 {[%clk 0:01:59]} 20. Nd2 {[%clk 0:02:16]}  Be5 {[%clk 0:01:59]} 21. Ra2 {[%clk 0:02:15]}  Ne8 {[%clk 0:01:52]} 22. b3 {[%clk 0:01:51]}  Nd6 {[%clk 0:01:51]} 23. Qa6 {[%clk 0:01:52]}  Qd7 {[%clk 0:01:39]} 24. Rc2 {[%clk 0:01:49]}  Bc3 {[%clk 0:01:36]} 25. Ne4 {[%clk 0:01:12]}  Nxe4 {[%clk 0:01:27]} 26. Bxe4 {[%clk 0:01:13]}  Rfe8 {[%clk 0:01:26]} 27. Bf3 {[%clk 0:01:02]}  c4 {[%clk 0:01:14]} 28. bxc4 {[%clk 0:01:00]}  Qf5 {[%clk 0:01:13]} 29. d6 {[%clk 0:00:29]}  Qxf3 {[%clk 0:01:07]} 30. d7 {[%clk 0:00:29]}  Qd1+ {[%clk 0:01:07]} 31. Kg2 {[%clk 0:00:29]}  Qxd7 {[%clk 0:01:08]} 0-1


[Site "https://www.chess.com"]

[Event "Titled Tuesday Blitz June 14 Late 2022"]
[White "Yurovskykh, Oleksandr"]
[Black "Daggupati, Balaji"]
[WhiteFideId "14134020"]
[BlackFideId "2090759"]
[WhiteElo "2292"]
[BlackElo "2704"]
[Result "1-0"]
[Round "06"]
[TimeControl "180+1"]
[Date "2022.06.14"]
[WhiteClock "0:00:21"]
[BlackClock "0:00:09"]

1. d4 {[%clk 0:02:10]}  d5 {[%clk 0:02:53]} 2. Bf4 {[%clk 0:02:09]}  c5 {[%clk 0:02:53]} 3. e3 {[%clk 0:02:10]}  Nc6 {[%clk 0:02:54]} 4. c3 {[%clk 0:02:10]}  Qb6 {[%clk 0:02:54]} 5. Qb3 {[%clk 0:02:10]}  c4 {[%clk 0:02:55]} 6. Qc2 {[%clk 0:02:11]}  e5 {[%clk 0:02:53]} 7. Bxe5 {[%clk 0:02:05]}  Bf5 {[%clk 0:02:50]} 8. Qc1 {[%clk 0:02:05]}  Nxe5 {[%clk 0:02:47]} 9. dxe5 {[%clk 0:02:06]}  Ne7 {[%clk 0:02:42]} 10. Nf3 {[%clk 0:02:05]}  Ng6 {[%clk 0:02:39]} 11. Nbd2 {[%clk 0:02:04]}  Bc5 {[%clk 0:02:38]} 12. Nd4 {[%clk 0:02:01]}  Bd7 {[%clk 0:02:36]} 13. N2f3 {[%clk 0:02:00]}  O-O {[%clk 0:02:36]} 14. Be2 {[%clk 0:02:00]}  Rfe8 {[%clk 0:02:36]} 15. O-O {[%clk 0:01:54]}  Nxe5 {[%clk 0:02:36]} 16. Nxe5 {[%clk 0:01:55]}  Rxe5 {[%clk 0:02:37]} 17. Bf3 {[%clk 0:01:49]}  Qf6 {[%clk 0:02:23]} 18. Ne2 {[%clk 0:01:41]}  Rae8 {[%clk 0:02:18]} 19. Qd1 {[%clk 0:01:33]}  Bc6 {[%clk 0:02:06]} 20. Nd4 {[%clk 0:01:28]}  Qg6 {[%clk 0:01:43]} 21. b3 {[%clk 0:01:15]}  cxb3 {[%clk 0:01:36]} 22. axb3 {[%clk 0:01:14]}  Bb6 {[%clk 0:01:34]} 23. c4 {[%clk 0:01:05]}  dxc4 {[%clk 0:01:19]} 24. Nxc6 {[%clk 0:01:05]}  bxc6 {[%clk 0:01:20]} 25. bxc4 {[%clk 0:01:05]}  Rd8 {[%clk 0:01:17]} 26. Qb1 {[%clk 0:01:02]}  Qe6 {[%clk 0:01:13]} 27. Qc2 {[%clk 0:01:00]}  Rc5 {[%clk 0:01:12]} 28. Rac1 {[%clk 0:00:54]}  g6 {[%clk 0:01:09]} 29. g3 {[%clk 0:00:53]}  h5 {[%clk 0:01:03]} 30. h4 {[%clk 0:00:53]}  Re5 {[%clk 0:00:58]} 31. Kg2 {[%clk 0:00:52]}  Rf5 {[%clk 0:00:41]} 32. Rfd1 {[%clk 0:00:49]}  Qf6 {[%clk 0:00:40]} 33. Rxd8+ {[%clk 0:00:47]}  Bxd8 {[%clk 0:00:41]} 34. Qe4 {[%clk 0:00:45]}  Rc5 {[%clk 0:00:35]} 35. Rd1 {[%clk 0:00:41]}  Bb6 {[%clk 0:00:33]} 36. Rd7 {[%clk 0:00:38]}  Kg7 {[%clk 0:00:30]} 37. Rb7 {[%clk 0:00:34]}  Qf5 {[%clk 0:00:17]} 38. Qe8 {[%clk 0:00:30]}  Re5 {[%clk 0:00:10]} 39. Rxf7+ {[%clk 0:00:27]}  Qxf7 {[%clk 0:00:10]} 40. Qxe5+ {[%clk 0:00:27]}  Kh7 {[%clk 0:00:11]} 41. Bxc6 {[%clk 0:00:25]}  Qxc4 {[%clk 0:00:11]} 42. Be4 {[%clk 0:00:15]}  Qc7 {[%clk 0:00:10]} 43. Qe6 {[%clk 0:00:14]}  Qg7 {[%clk 0:00:09]} 44. Qd5 {[%clk 0:00:14]}  Kh6 {[%clk 0:00:09]} 45. Qg5+ {[%clk 0:00:14]}  Kh7 {[%clk 0:00:10]} 46. Qxh5+ {[%clk 0:00:15]}  Kg8 {[%clk 0:00:11]} 47. Qxg6 {[%clk 0:00:15]}  Qxg6 {[%clk 0:00:11]} 48. Bxg6 {[%clk 0:00:15]}  a5 {[%clk 0:00:11]} 49. Bc2 {[%clk 0:00:16]}  Kf7 {[%clk 0:00:11]} 50. Kf3 {[%clk 0:00:17]}  Kf6 {[%clk 0:00:12]} 51. Ke4 {[%clk 0:00:18]}  Ke6 {[%clk 0:00:11]} 52. g4 {[%clk 0:00:18]}  Bd8 {[%clk 0:00:11]} 53. g5 {[%clk 0:00:18]}  Kd6 {[%clk 0:00:10]} 54. f4 {[%clk 0:00:19]}  Ke6 {[%clk 0:00:11]} 55. h5 {[%clk 0:00:19]}  Kd6 {[%clk 0:00:10]} 56. h6 {[%clk 0:00:20]}  Ke6 {[%clk 0:00:09]} 57. h7 {[%clk 0:00:21]} 1-0


[Site "https://www.chess.com"]